[Event "Titled Tuesday Blitz July 20 2021"]
[White "Karthikeyan, Murali"]
[Black "Garcia Ramos, Daniel"]
[WhiteFideId "5074452"]
[BlackFideId "32010311"]
[WhiteElo "2564"]
[BlackElo "2321"]
[Result "1/2-1/2"]
[Round "08"]
[TimeControl "180+1"]
[Date "2021.07.20"]
[WhiteClock "0:00:05"]
[BlackClock "0:00:04"]

1. Nf3 {[%clk 0:02:52]}  Nf6 {[%clk 0:02:52]} 2. b3 {[%clk 0:02:45]}  g6 {[%clk 0:02:51]} 3. Bb2 {[%clk 0:02:41]}  Bg7 {[%clk 0:02:52]} 4. g3 {[%clk 0:02:42]}  O-O {[%clk 0:02:52]} 5. Bg2 {[%clk 0:02:42]}  c5 {[%clk 0:02:52]} 6. O-O {[%clk 0:02:42]}  Nc6 {[%clk 0:02:53]} 7. c4 {[%clk 0:02:40]}  d6 {[%clk 0:02:50]} 8. d4 {[%clk 0:02:40]}  Ne4 {[%clk 0:02:49]} 9. Nc3 {[%clk 0:02:27]}  Bf5 {[%clk 0:02:34]} 10. e3 {[%clk 0:02:21]}  cxd4 {[%clk 0:02:26]} 11. Nxd4 {[%clk 0:02:13]}  Nxd4 {[%clk 0:02:16]} 12. Bxe4 {[%clk 0:01:56]}  Bxe4 {[%clk 0:01:24]} 13. Nxe4 {[%clk 0:01:53]}  Nf3+ {[%clk 0:01:11]} 14. Qxf3 {[%clk 0:01:53]}  Bxb2 {[%clk 0:01:12]} 15. Rab1 {[%clk 0:01:52]}  Bg7 {[%clk 0:01:12]} 16. h4 {[%clk 0:01:46]}  h5 {[%clk 0:01:11]} 17. Rfd1 {[%clk 0:01:43]}  Qc8 {[%clk 0:01:11]} 18. Rbc1 {[%clk 0:01:40]}  a6 {[%clk 0:01:06]} 19. c5 {[%clk 0:01:34]}  dxc5 {[%clk 0:01:05]} 20. Nxc5 {[%clk 0:01:34]}  Rd8 {[%clk 0:00:35]} 21. Nxb7 {[%clk 0:01:25]}  Rxd1+ {[%clk 0:00:31]} 22. Rxd1 {[%clk 0:01:26]}  Qc2 {[%clk 0:00:29]} 23. Nd8 {[%clk 0:01:01]}  Bf6 {[%clk 0:00:27]} 24. Qd5 {[%clk 0:00:56]}  e6 {[%clk 0:00:24]} 25. Nxe6 {[%clk 0:00:52]}  Re8 {[%clk 0:00:14]} 26. Nf4 {[%clk 0:00:48]}  Rd8 {[%clk 0:00:11]} 27. Qxd8+ {[%clk 0:00:38]}  Bxd8 {[%clk 0:00:11]} 28. Rxd8+ {[%clk 0:00:39]}  Kg7 {[%clk 0:00:12]} 29. a4 {[%clk 0:00:36]}  Qxb3 {[%clk 0:00:12]} 30. Rd4 {[%clk 0:00:37]}  a5 {[%clk 0:00:11]} 31. Kg2 {[%clk 0:00:37]}  Qb7+ {[%clk 0:00:11]} 32. Nd5 {[%clk 0:00:36]}  Qc6 {[%clk 0:00:10]} 33. Kf3 {[%clk 0:00:22]}  f6 {[%clk 0:00:09]} 34. Kg2 {[%clk 0:00:20]}  Kf7 {[%clk 0:00:08]} 35. Kg1 {[%clk 0:00:17]}  Qc1+ {[%clk 0:00:07]} 36. Kh2 {[%clk 0:00:18]}  Qc2 {[%clk 0:00:06]} 37. Kg2 {[%clk 0:00:18]}  Qc6 {[%clk 0:00:06]} 38. Kf3 {[%clk 0:00:09]}  g5 {[%clk 0:00:05]} 39. hxg5 {[%clk 0:00:07]}  fxg5 {[%clk 0:00:06]} 40. Kg2 {[%clk 0:00:07]}  Kg6 {[%clk 0:00:05]} 41. Kg1 {[%clk 0:00:04]}  Qc1+ {[%clk 0:00:04]} 42. Kh2 {[%clk 0:00:04]}  Qc2 {[%clk 0:00:05]} 43. Kg2 {[%clk 0:00:04]}  Qc6 {[%clk 0:00:05]} 44. Kf1 {[%clk 0:00:05]}  Qc1+ {[%clk 0:00:04]} 45. Kg2 {[%clk 0:00:05]}  Qc6 {[%clk 0:00:04]} 1/2-1/2


[Site "https://www.chess.com"]

[Event "Titled Tuesday Blitz July 20 2021"]
[White "Khalafova, Narmin"]
[Black "Vasli, Aref"]
[WhiteFideId "13402625"]
[BlackFideId "417521"]
[WhiteElo "2109"]
[BlackElo "2257"]
[Result "1-0"]
[Round "08"]
[TimeControl "180+1"]
[Date "2021.07.21"]
[WhiteClock "0:00:16"]
[BlackClock "0:01:33"]

1. e4 {[%clk 0:03:00]}  g6 {[%clk 0:03:00]} 2. d4 {[%clk 0:03:00]}  Bg7 {[%clk 0:03:00]} 3. Nc3 {[%clk 0:03:00]}  d6 {[%clk 0:03:01]} 4. h4 {[%clk 0:03:00]}  h5 {[%clk 0:03:00]} 5. Be3 {[%clk 0:02:58]}  a6 {[%clk 0:03:00]} 6. Qd2 {[%clk 0:02:58]}  Nc6 {[%clk 0:02:58]} 7. O-O-O {[%clk 0:02:49]}  e5 {[%clk 0:02:53]} 8. d5 {[%clk 0:02:46]}  Nd4 {[%clk 0:02:53]} 9. Bxd4 {[%clk 0:02:39]}  exd4 {[%clk 0:02:53]} 10. Nce2 {[%clk 0:02:40]}  Bh6 {[%clk 0:02:47]} 11. f4 {[%clk 0:02:37]}  Bg7 {[%clk 0:02:47]} 12. Nxd4 {[%clk 0:02:35]}  Bg4 {[%clk 0:02:47]} 13. Ngf3 {[%clk 0:02:33]}  Qe7 {[%clk 0:02:43]} 14. Re1 {[%clk 0:02:20]}  O-O-O {[%clk 0:02:42]} 15. Nc6 {[%clk 0:02:02]}  Qf6 {[%clk 0:02:31]} 16. e5 {[%clk 0:02:00]}  dxe5 {[%clk 0:02:30]} 17. fxe5 {[%clk 0:02:00]}  Qxc6 {[%clk 0:02:30]} 18. dxc6 {[%clk 0:01:56]}  Rxd2 {[%clk 0:02:30]} 19. Kxd2 {[%clk 0:01:50]}  Ne7 {[%clk 0:02:28]} 20. cxb7+ {[%clk 0:01:46]}  Kxb7 {[%clk 0:02:28]} 21. Bc4 {[%clk 0:01:41]}  Rd8+ {[%clk 0:02:27]} 22. Kc1 {[%clk 0:01:35]}  Bxf3 {[%clk 0:02:02]} 23. gxf3 {[%clk 0:01:29]}  Bh6+ {[%clk 0:02:02]} 24. Kb1 {[%clk 0:01:28]}  Rf8 {[%clk 0:02:03]} 25. Rd1 {[%clk 0:01:19]}  Nf5 {[%clk 0:02:02]} 26. Rd7 {[%clk 0:01:16]}  Ng3 {[%clk 0:01:58]} 27. Rg1 {[%clk 0:00:56]}  Bf4 {[%clk 0:01:57]} 28. Rxf7 {[%clk 0:00:48]}  Rxf7 {[%clk 0:01:49]} 29. Bxf7 {[%clk 0:00:49]}  Bxe5 {[%clk 0:01:49]} 30. Bxg6 {[%clk 0:00:48]}  c6 {[%clk 0:01:49]} 31. c3 {[%clk 0:00:41]}  Bf4 {[%clk 0:01:48]} 32. Kc2 {[%clk 0:00:40]}  Kb6 {[%clk 0:01:48]} 33. Kd3 {[%clk 0:00:37]}  a5 {[%clk 0:01:48]} 34. Re1 {[%clk 0:00:32]}  Bc7 {[%clk 0:01:46]} 35. Re8 {[%clk 0:00:29]}  Bf4 {[%clk 0:01:42]} 36. Rh8 {[%clk 0:00:28]}  Bc1 {[%clk 0:01:42]} 37. Kc2 {[%clk 0:00:27]}  Bf4 {[%clk 0:01:42]} 38. Bxh5 {[%clk 0:00:27]}  Be5 {[%clk 0:01:39]} 39. Rh7 {[%clk 0:00:26]}  Kc5 {[%clk 0:01:37]} 40. Bg6 {[%clk 0:00:24]}  a4 {[%clk 0:01:35]} 41. h5 {[%clk 0:00:22]}  Bf4 {[%clk 0:01:34]} 42. Bd3 {[%clk 0:00:17]}  a3 {[%clk 0:01:33]} 43. b4+ {[%clk 0:00:16]}  Kb6 {[%clk 0:01:33]} 44. h6 {[%clk 0:00:16]} 1-0


[Site "https://www.chess.com"]

[Event "Titled Tuesday Blitz July 20 2021"]
[White "Khusnutdinov, Rustam"]
[Black "Asadli, Vugar"]
[WhiteFideId "13701703"]
[BlackFideId "13405764"]
[WhiteElo "2571"]
[BlackElo "2386"]
[Result "0-1"]
[Round "08"]
[TimeControl "180+1"]
[Date "2021.07.20"]
[WhiteClock "0:00:17"]
[BlackClock "0:00:22"]

1. d4 {[%clk 0:03:00]}  d5 {[%clk 0:02:59]} 2. c4 {[%clk 0:02:56]}  c6 {[%clk 0:02:59]} 3. Nc3 {[%clk 0:02:54]}  Nf6 {[%clk 0:02:59]} 4. e3 {[%clk 0:02:54]}  a6 {[%clk 0:02:56]} 5. Nf3 {[%clk 0:02:54]}  Bf5 {[%clk 0:02:56]} 6. Qb3 {[%clk 0:02:53]}  b5 {[%clk 0:02:54]} 7. cxd5 {[%clk 0:02:48]}  cxd5 {[%clk 0:02:53]} 8. a4 {[%clk 0:02:48]}  b4 {[%clk 0:02:53]} 9. Qxb4 {[%clk 0:02:45]}  Nc6 {[%clk 0:02:52]} 10. Qc5 {[%clk 0:02:45]}  Bd7 {[%clk 0:02:41]} 11. Nxd5 {[%clk 0:02:38]}  e5 {[%clk 0:02:39]} 12. Nxf6+ {[%clk 0:02:35]}  gxf6 {[%clk 0:02:35]} 13. Qc4 {[%clk 0:01:53]}  Nb4 {[%clk 0:02:27]} 14. Bd3 {[%clk 0:01:34]}  Be6 {[%clk 0:01:39]} 15. Qc3 {[%clk 0:01:33]}  Rc8 {[%clk 0:01:30]} 16. Qd2 {[%clk 0:01:32]}  Qd5 {[%clk 0:01:24]} 17. e4 {[%clk 0:01:28]}  Qb3 {[%clk 0:01:24]} 18. Bb1 {[%clk 0:01:15]}  Rc2 {[%clk 0:01:04]} 19. Ra3 {[%clk 0:01:10]}  Nd3+ {[%clk 0:00:52]} 20. Kf1 {[%clk 0:00:52]}  Rxc1+ {[%clk 0:00:44]} 21. Qxc1 {[%clk 0:00:46]}  Nxc1 {[%clk 0:00:32]} 22. Rxb3 {[%clk 0:00:46]}  Nxb3 {[%clk 0:00:33]} 23. dxe5 {[%clk 0:00:46]}  fxe5 {[%clk 0:00:31]} 24. Nxe5 {[%clk 0:00:47]}  Bg7 {[%clk 0:00:29]} 25. Nd3 {[%clk 0:00:46]}  Bc4 {[%clk 0:00:30]} 26. Ke1 {[%clk 0:00:46]}  Ke7 {[%clk 0:00:29]} 27. h4 {[%clk 0:00:45]}  Rd8 {[%clk 0:00:29]} 28. Rh3 {[%clk 0:00:45]}  Bxd3 {[%clk 0:00:26]} 29. Rxd3 {[%clk 0:00:44]}  Rxd3 {[%clk 0:00:26]} 30. Bxd3 {[%clk 0:00:45]}  Nc5 {[%clk 0:00:27]} 31. Bc2 {[%clk 0:00:45]}  Bxb2 {[%clk 0:00:27]} 32. Ke2 {[%clk 0:00:44]}  h6 {[%clk 0:00:28]} 33. Kf3 {[%clk 0:00:43]}  Bd4 {[%clk 0:00:27]} 34. Kg3 {[%clk 0:00:42]}  f6 {[%clk 0:00:27]} 35. f3 {[%clk 0:00:37]}  a5 {[%clk 0:00:28]} 36. Kg4 {[%clk 0:00:37]}  Kf7 {[%clk 0:00:27]} 37. Kf5 {[%clk 0:00:34]}  Nb7 {[%clk 0:00:23]} 38. Bb3+ {[%clk 0:00:31]}  Kg7 {[%clk 0:00:23]} 39. Bd5 {[%clk 0:00:30]}  Nc5 {[%clk 0:00:22]} 40. Bc6 {[%clk 0:00:31]}  Nd3 {[%clk 0:00:22]} 41. Bb5 {[%clk 0:00:29]}  Ne1 {[%clk 0:00:19]} 42. Bf1 {[%clk 0:00:29]}  Nc2 {[%clk 0:00:19]} 43. Be2 {[%clk 0:00:18]}  Ne3+ {[%clk 0:00:20]} 44. Ke6 {[%clk 0:00:19]}  Nxg2 {[%clk 0:00:21]} 45. Kf5 {[%clk 0:00:18]}  Be5 {[%clk 0:00:21]} 46. h5 {[%clk 0:00:18]}  Nf4 {[%clk 0:00:21]} 47. Bd1 {[%clk 0:00:17]}  Nxh5 {[%clk 0:00:22]} 0-1


[Site "https://www.chess.com"]

[Event "Titled Tuesday Blitz July 20 2021"]
[White "Kobalia, Mikhail"]
[Black "Narayanan.S.L"]
[WhiteFideId "4119150"]
[BlackFideId "5058422"]
[WhiteElo "2569"]
[BlackElo "2617"]
[Result "1-0"]
[Round "08"]
[TimeControl "180+1"]
[Date "2021.07.20"]
[WhiteClock "0:00:40"]
[BlackClock "0:00:32"]

1. e4 {[%clk 0:03:00]}  e6 {[%clk 0:02:59]} 2. d4 {[%clk 0:02:58]}  d5 {[%clk 0:02:59]} 3. Nc3 {[%clk 0:02:59]}  Bb4 {[%clk 0:02:59]} 4. e5 {[%clk 0:02:59]}  b6 {[%clk 0:02:59]} 5. Qg4 {[%clk 0:02:57]}  Bf8 {[%clk 0:02:58]} 6. h4 {[%clk 0:02:52]}  h5 {[%clk 0:02:57]} 7. Qd1 {[%clk 0:02:44]}  Ba6 {[%clk 0:02:56]} 8. Nce2 {[%clk 0:02:42]}  Ne7 {[%clk 0:02:46]} 9. Nh3 {[%clk 0:02:34]}  Nf5 {[%clk 0:02:44]} 10. Bg5 {[%clk 0:02:32]}  Be7 {[%clk 0:02:43]} 11. g3 {[%clk 0:02:22]}  c5 {[%clk 0:02:25]} 12. c3 {[%clk 0:02:21]}  Nc6 {[%clk 0:02:24]} 13. Qa4 {[%clk 0:02:12]}  Bb7 {[%clk 0:02:23]} 14. Bxe7 {[%clk 0:02:06]}  Qxe7 {[%clk 0:02:21]} 15. Nhf4 {[%clk 0:02:05]}  cxd4 {[%clk 0:01:10]} 16. Nxd4 {[%clk 0:02:04]}  Nxd4 {[%clk 0:01:10]} 17. cxd4 {[%clk 0:02:05]}  Qb4+ {[%clk 0:01:10]} 18. Qxb4 {[%clk 0:02:05]}  Nxb4 {[%clk 0:01:11]} 19. Kd2 {[%clk 0:01:55]}  Rc8 {[%clk 0:01:09]} 20. Bb5+ {[%clk 0:01:43]}  Ke7 {[%clk 0:01:09]} 21. Rhc1 {[%clk 0:01:42]}  g6 {[%clk 0:01:09]} 22. a3 {[%clk 0:01:40]}  Nc6 {[%clk 0:01:08]} 23. Bxc6 {[%clk 0:01:38]}  Bxc6 {[%clk 0:01:07]} 24. Rc3 {[%clk 0:01:26]}  Rc7 {[%clk 0:01:03]} 25. Rac1 {[%clk 0:01:25]}  Rhc8 {[%clk 0:01:03]} 26. Nh3 {[%clk 0:01:23]}  a5 {[%clk 0:00:56]} 27. Ng5 {[%clk 0:01:11]}  a4 {[%clk 0:00:54]} 28. Ke3 {[%clk 0:01:10]}  Kf8 {[%clk 0:00:51]} 29. Kf4 {[%clk 0:01:06]}  Ke7 {[%clk 0:00:51]} 30. Nh7 {[%clk 0:01:02]}  Kd8 {[%clk 0:00:33]} 31. Kg5 {[%clk 0:01:01]}  Ke7 {[%clk 0:00:32]} 32. Nf6 {[%clk 0:00:57]}  Kf8 {[%clk 0:00:33]} 33. Kh6 {[%clk 0:00:56]}  Ke7 {[%clk 0:00:33]} 34. Kg7 {[%clk 0:00:55]}  Kd8 {[%clk 0:00:31]} 35. Kf8 {[%clk 0:00:46]}  b5 {[%clk 0:00:32]} 36. Rc5 {[%clk 0:00:40]} 1-0


[Site "https://www.chess.com"]

[Event "Titled Tuesday Blitz July 20 2021"]
[White "Lazavik, Denis"]
[Black "Grabinsky, Aaron"]
[WhiteFideId "13515110"]
[BlackFideId "2087090"]
[WhiteElo "2436"]
[BlackElo "2353"]
[Result "1-0"]
[Round "08"]
[TimeControl "180+1"]
[Date "2021.07.20"]
[WhiteClock "0:01:12"]
[BlackClock "0:01:04"]

1. d4 {[%clk 0:03:00]}  e6 {[%clk 0:02:59]} 2. c4 {[%clk 0:03:01]}  Nf6 {[%clk 0:03:00]} 3. Nf3 {[%clk 0:03:01]}  Bb4+ {[%clk 0:03:00]} 4. Bd2 {[%clk 0:03:01]}  Qe7 {[%clk 0:03:00]} 5. g3 {[%clk 0:03:01]}  Nc6 {[%clk 0:03:01]} 6. Nc3 {[%clk 0:03:00]}  Bxc3 {[%clk 0:03:01]} 7. Bxc3 {[%clk 0:03:01]}  Ne4 {[%clk 0:03:02]} 8. Qc2 {[%clk 0:03:01]}  Nxc3 {[%clk 0:03:02]} 9. Qxc3 {[%clk 0:03:02]}  Qb4 {[%clk 0:03:02]} 10. Kd2 {[%clk 0:03:03]}  Qxc3+ {[%clk 0:03:02]} 11. Kxc3 {[%clk 0:03:03]}  b6 {[%clk 0:03:03]} 12. Bg2 {[%clk 0:02:54]}  Bb7 {[%clk 0:03:03]} 13. Rhd1 {[%clk 0:02:43]}  a5 {[%clk 0:03:00]} 14. b3 {[%clk 0:02:32]}  d6 {[%clk 0:02:51]} 15. Ne1 {[%clk 0:02:19]}  O-O-O {[%clk 0:02:37]} 16. Nd3 {[%clk 0:02:16]}  Rhe8 {[%clk 0:02:33]} 17. f4 {[%clk 0:02:08]}  Ne7 {[%clk 0:02:31]} 18. Bxb7+ {[%clk 0:02:06]}  Kxb7 {[%clk 0:02:32]} 19. e4 {[%clk 0:01:56]}  f6 {[%clk 0:02:16]} 20. a3 {[%clk 0:01:50]}  d5 {[%clk 0:02:15]} 21. e5 {[%clk 0:01:44]}  Nf5 {[%clk 0:02:03]} 22. c5 {[%clk 0:01:42]}  h5 {[%clk 0:01:56]} 23. Re1 {[%clk 0:01:39]}  Re7 {[%clk 0:01:50]} 24. b4 {[%clk 0:01:34]}  axb4+ {[%clk 0:01:47]} 25. axb4 {[%clk 0:01:33]}  Ree8 {[%clk 0:01:35]} 26. b5 {[%clk 0:01:26]}  Ra8 {[%clk 0:01:19]} 27. c6+ {[%clk 0:01:20]}  Kb8 {[%clk 0:01:19]} 28. Rxa8+ {[%clk 0:01:19]}  Kxa8 {[%clk 0:01:20]} 29. Nb4 {[%clk 0:01:19]}  Re7 {[%clk 0:01:11]} 30. Ra1+ {[%clk 0:01:13]}  Kb8 {[%clk 0:01:11]} 31. Na6+ {[%clk 0:01:14]}  Kc8 {[%clk 0:01:12]} 32. Nc5 {[%clk 0:01:13]}  bxc5 {[%clk 0:01:04]} 33. Ra8# {[%clk 0:01:12]} 1-0


[Site "https://www.chess.com"]

[Event "Titled Tuesday Blitz July 20 2021"]
[White "Leitao, Rafael"]
[Black "Obolentseva, Alexandra"]
[WhiteFideId "2101246"]
[BlackFideId "24153648"]
[WhiteElo "2609"]
[BlackElo "2113"]
[Result "1-0"]
[Round "08"]
[TimeControl "180+1"]
[Date "2021.07.21"]
[WhiteClock "0:01:47"]
[BlackClock "0:01:06"]

1. c4 {[%clk 0:03:00]}  Nf6 {[%clk 0:02:58]} 2. g3 {[%clk 0:02:57]}  g6 {[%clk 0:02:52]} 3. Bg2 {[%clk 0:02:57]}  Bg7 {[%clk 0:02:51]} 4. Nc3 {[%clk 0:02:57]}  O-O {[%clk 0:02:51]} 5. d4 {[%clk 0:02:57]}  d6 {[%clk 0:02:50]} 6. Nf3 {[%clk 0:02:57]}  c5 {[%clk 0:02:44]} 7. O-O {[%clk 0:02:54]}  cxd4 {[%clk 0:02:39]} 8. Nxd4 {[%clk 0:02:54]}  Nc6 {[%clk 0:02:40]} 9. Nc2 {[%clk 0:02:48]}  e6 {[%clk 0:02:17]} 10. e4 {[%clk 0:02:42]}  a6 {[%clk 0:02:08]} 11. Bf4 {[%clk 0:02:39]}  Ne5 {[%clk 0:02:02]} 12. c5 {[%clk 0:02:34]}  Nh5 {[%clk 0:01:41]} 13. cxd6 {[%clk 0:02:32]}  Nxf4 {[%clk 0:01:41]} 14. gxf4 {[%clk 0:02:32]}  Nc4 {[%clk 0:01:40]} 15. e5 {[%clk 0:02:32]}  Qh4 {[%clk 0:01:37]} 16. Qd4 {[%clk 0:02:28]}  Nxd6 {[%clk 0:01:23]} 17. Qxd6 {[%clk 0:02:21]}  Qxf4 {[%clk 0:01:23]} 18. Rfe1 {[%clk 0:02:15]}  Re8 {[%clk 0:01:15]} 19. Rad1 {[%clk 0:02:11]}  Bf8 {[%clk 0:01:13]} 20. Qd4 {[%clk 0:02:08]}  Qh6 {[%clk 0:01:13]} 21. Ne4 {[%clk 0:02:06]}  Be7 {[%clk 0:01:12]} 22. Ne3 {[%clk 0:01:50]}  Rb8 {[%clk 0:01:06]} 23. Ng4 {[%clk 0:01:47]} 1-0


[Site "https://www.chess.com"]

[Event "Titled Tuesday Blitz July 20 2021"]
[White "LuckSlayeer"]
[Black "Seo, Jung Min"]
[BlackFideId "1734687"]
[WhiteElo "2568"]
[BlackElo "2486"]
[Result "0-1"]
[Round "08"]
[TimeControl "180+1"]
[Date "2021.07.21"]
[WhiteClock "0:00:02"]
[BlackClock "0:00:10"]

1. Nf3 {[%clk 0:02:53]}  Nf6 {[%clk 0:02:59]} 2. c4 {[%clk 0:02:54]}  g6 {[%clk 0:02:59]} 3. Nc3 {[%clk 0:02:54]}  Bg7 {[%clk 0:02:59]} 4. e4 {[%clk 0:02:54]}  d6 {[%clk 0:03:00]} 5. d4 {[%clk 0:02:55]}  O-O {[%clk 0:03:00]} 6. Be2 {[%clk 0:02:55]}  Nc6 {[%clk 0:02:58]} 7. O-O {[%clk 0:02:54]}  e5 {[%clk 0:02:58]} 8. d5 {[%clk 0:02:55]}  Ne7 {[%clk 0:02:58]} 9. b4 {[%clk 0:02:56]}  a5 {[%clk 0:02:57]} 10. bxa5 {[%clk 0:02:54]}  c5 {[%clk 0:02:57]} 11. a4 {[%clk 0:02:52]}  Rxa5 {[%clk 0:02:54]} 12. Nd2 {[%clk 0:02:50]}  h6 {[%clk 0:02:53]} 13. Nb5 {[%clk 0:02:49]}  Ne8 {[%clk 0:02:52]} 14. Bb2 {[%clk 0:02:32]}  f5 {[%clk 0:02:52]} 15. Bc3 {[%clk 0:02:33]}  Ra8 {[%clk 0:02:51]} 16. a5 {[%clk 0:02:32]}  Nf6 {[%clk 0:02:38]} 17. f3 {[%clk 0:01:35]}  f4 {[%clk 0:02:35]} 18. Ra3 {[%clk 0:01:16]}  g5 {[%clk 0:02:34]} 19. Qa1 {[%clk 0:01:16]}  Ra6 {[%clk 0:02:32]} 20. Nxd6 {[%clk 0:00:56]}  Qxd6 {[%clk 0:02:32]} 21. Bxe5 {[%clk 0:00:49]}  Qd8 {[%clk 0:02:12]} 22. Nb3 {[%clk 0:00:49]}  Ng6 {[%clk 0:02:05]} 23. Bc3 {[%clk 0:00:49]}  Qe7 {[%clk 0:02:04]} 24. e5 {[%clk 0:00:42]}  Ne8 {[%clk 0:01:54]} 25. d6 {[%clk 0:00:26]}  Qd8 {[%clk 0:01:38]} 26. Nxc5 {[%clk 0:00:26]}  Rc6 {[%clk 0:01:37]} 27. Ne4 {[%clk 0:00:22]}  Bf5 {[%clk 0:01:34]} 28. Bd3 {[%clk 0:00:18]}  Kh8 {[%clk 0:01:34]} 29. Bd4 {[%clk 0:00:16]}  Qd7 {[%clk 0:01:32]} 30. Nc5 {[%clk 0:00:14]}  Rxc5 {[%clk 0:01:21]} 31. Bxc5 {[%clk 0:00:15]}  Bxd3 {[%clk 0:01:14]} 32. Rxd3 {[%clk 0:00:16]}  Nxe5 {[%clk 0:01:14]} 33. Qd1 {[%clk 0:00:07]}  Nxd3 {[%clk 0:01:14]} 34. Qxd3 {[%clk 0:00:08]}  Nf6 {[%clk 0:01:13]} 35. Re1 {[%clk 0:00:07]}  Qc6 {[%clk 0:01:10]} 36. Ba3 {[%clk 0:00:06]}  Rc8 {[%clk 0:01:07]} 37. Re7 {[%clk 0:00:05]}  Qxc4 {[%clk 0:00:53]} 38. Qxc4 {[%clk 0:00:06]}  Rxc4 {[%clk 0:00:53]} 39. d7 {[%clk 0:00:06]}  Nxd7 {[%clk 0:00:49]} 40. Rxd7 {[%clk 0:00:07]}  Ra4 {[%clk 0:00:46]} 41. Bd6 {[%clk 0:00:04]}  Rd4 {[%clk 0:00:36]} 42. Rd8+ {[%clk 0:00:02]}  Kh7 {[%clk 0:00:37]} 43. Bc7 {[%clk 0:00:03]}  Rc4 {[%clk 0:00:32]} 44. Rd7 {[%clk 0:00:03]}  Kg6 {[%clk 0:00:31]} 45. Bb6 {[%clk 0:00:03]}  Rc1+ {[%clk 0:00:31]} 46. Kf2 {[%clk 0:00:04]}  Rc2+ {[%clk 0:00:31]} 47. Kf1 {[%clk 0:00:05]}  Rc1+ {[%clk 0:00:21]} 48. Ke2 {[%clk 0:00:05]}  Rc2+ {[%clk 0:00:21]} 49. Kf1 {[%clk 0:00:05]}  Ra2 {[%clk 0:00:13]} 50. Rxb7 {[%clk 0:00:04]}  Bc3 {[%clk 0:00:12]} 51. Rc7 {[%clk 0:00:03]}  Bxa5 {[%clk 0:00:10]} 52. Ra7 {[%clk 0:00:02]}  Ra1+ {[%clk 0:00:10]} 0-1


[Site "https://www.chess.com"]

[Event "Titled Tuesday Blitz July 20 2021"]
[White "Manukyan, Artyom"]
[Black "Dzhaparov, Medet"]
[WhiteFideId "13305786"]
[BlackFideId "13803689"]
[WhiteElo "2034"]
[BlackElo "1702"]
[Result "0-1"]
[Round "08"]
[TimeControl "180+1"]
[Date "2021.07.21"]
[WhiteClock "0:00:01"]
[BlackClock "0:00:05"]

1. e4 {[%clk 0:03:00]}  e5 {[%clk 0:02:59]} 2. Nf3 {[%clk 0:03:00]}  Nc6 {[%clk 0:02:59]} 3. Bb5 {[%clk 0:03:00]}  a6 {[%clk 0:02:59]} 4. Bxc6 {[%clk 0:03:00]}  dxc6 {[%clk 0:02:59]} 5. O-O {[%clk 0:03:01]}  Bg4 {[%clk 0:02:59]} 6. h3 {[%clk 0:03:01]}  Bxf3 {[%clk 0:02:59]} 7. Qxf3 {[%clk 0:03:00]}  Qd7 {[%clk 0:03:00]} 8. d3 {[%clk 0:03:00]}  f6 {[%clk 0:02:55]} 9. Nd2 {[%clk 0:03:00]}  h5 {[%clk 0:02:54]} 10. Nc4 {[%clk 0:03:00]}  O-O-O {[%clk 0:02:50]} 11. a4 {[%clk 0:03:00]}  Qe6 {[%clk 0:02:28]} 12. Bd2 {[%clk 0:02:58]}  Ne7 {[%clk 0:02:22]} 13. b4 {[%clk 0:02:57]}  g5 {[%clk 0:02:21]} 14. Qg3 {[%clk 0:02:53]}  g4 {[%clk 0:02:17]} 15. h4 {[%clk 0:02:54]}  Bg7 {[%clk 0:02:14]} 16. f4 {[%clk 0:02:34]}  f5 {[%clk 0:02:06]} 17. fxe5 {[%clk 0:02:13]}  fxe4 {[%clk 0:02:03]} 18. Bg5 {[%clk 0:02:13]}  exd3 {[%clk 0:01:56]} 19. cxd3 {[%clk 0:02:14]}  Rhf8 {[%clk 0:01:39]} 20. Qe3 {[%clk 0:01:44]}  Kb8 {[%clk 0:01:26]} 21. b5 {[%clk 0:01:42]}  cxb5 {[%clk 0:01:11]} 22. Rxf8 {[%clk 0:01:40]}  Rxf8 {[%clk 0:01:08]} 23. axb5 {[%clk 0:01:40]}  Nd5 {[%clk 0:01:07]} 24. Qc5 {[%clk 0:01:40]}  b6 {[%clk 0:01:04]} 25. Qd4 {[%clk 0:01:33]}  axb5 {[%clk 0:01:00]} 26. Nd2 {[%clk 0:01:04]}  Qxe5 {[%clk 0:00:57]} 27. Qxe5 {[%clk 0:01:04]}  Bxe5 {[%clk 0:00:57]} 28. Re1 {[%clk 0:00:59]}  Bd4+ {[%clk 0:00:52]} 29. Kh2 {[%clk 0:01:00]}  b4 {[%clk 0:00:45]} 30. Nc4 {[%clk 0:00:54]}  Rf2 {[%clk 0:00:35]} 31. Re4 {[%clk 0:00:51]}  Bf6 {[%clk 0:00:26]} 32. Re8+ {[%clk 0:00:37]}  Kb7 {[%clk 0:00:25]} 33. Bc1 {[%clk 0:00:34]}  Bxh4 {[%clk 0:00:22]} 34. Rd8 {[%clk 0:00:33]}  Rf5 {[%clk 0:00:20]} 35. Rd7 {[%clk 0:00:31]}  Kc6 {[%clk 0:00:20]} 36. Rh7 {[%clk 0:00:30]}  Bf6 {[%clk 0:00:19]} 37. Rh6 {[%clk 0:00:24]}  Kb5 {[%clk 0:00:18]} 38. Rh7 {[%clk 0:00:21]}  Kc6 {[%clk 0:00:13]} 39. Rh6 {[%clk 0:00:21]}  Kb7 {[%clk 0:00:13]} 40. Rh7 {[%clk 0:00:21]}  Be7 {[%clk 0:00:12]} 41. Bb2 {[%clk 0:00:18]}  Ka6 {[%clk 0:00:11]} 42. Rh8 {[%clk 0:00:09]}  b5 {[%clk 0:00:11]} 43. Nd2 {[%clk 0:00:03]}  Bd6+ {[%clk 0:00:11]} 44. Kg1 {[%clk 0:00:03]}  Bc5+ {[%clk 0:00:08]} 45. Kh2 {[%clk 0:00:03]}  Ne3 {[%clk 0:00:07]} 46. Ne4 {[%clk 0:00:02]}  Nf1+ {[%clk 0:00:06]} 47. Kh1 {[%clk 0:00:02]}  Bb6 {[%clk 0:00:07]} 48. Ra8+ {[%clk 0:00:01]}  Kb7 {[%clk 0:00:06]} 49. Rh8 {[%clk 0:00:02]}  Ne3 {[%clk 0:00:05]} 50. d4 {[%clk 0:00:02]}  Rf1+ {[%clk 0:00:05]} 51. Kh2 {[%clk 0:00:03]}  Rb1 {[%clk 0:00:05]} 52. d5 {[%clk 0:00:02]}  Nf1+ {[%clk 0:00:05]} 53. Kh1 {[%clk 0:00:01]}  Rxb2 {[%clk 0:00:05]} 0-1


[Site "https://www.chess.com"]

[Event "Titled Tuesday Blitz July 20 2021"]
[White "Melikhov, Evgeny V."]
[Black "Leve, Nitai"]
[WhiteFideId "4122046"]
[BlackFideId "2006898"]
[WhiteElo "1965"]
[BlackElo "2144"]
[Result "1-0"]
[Round "08"]
[TimeControl "180+1"]
[Date "2021.07.21"]
[WhiteClock "0:00:26"]
[BlackClock "0:00:01"]

1. d4 {[%clk 0:03:00]}  d5 {[%clk 0:02:36]} 2. c4 {[%clk 0:03:00]}  c6 {[%clk 0:02:36]} 3. Nc3 {[%clk 0:03:00]}  Nf6 {[%clk 0:02:36]} 4. e3 {[%clk 0:03:00]}  a6 {[%clk 0:02:36]} 5. c5 {[%clk 0:03:00]}  Bf5 {[%clk 0:02:33]} 6. Nf3 {[%clk 0:02:59]}  Nbd7 {[%clk 0:02:31]} 7. Nh4 {[%clk 0:02:56]}  Bg4 {[%clk 0:02:26]} 8. f3 {[%clk 0:02:47]}  Bh5 {[%clk 0:02:26]} 9. g4 {[%clk 0:02:42]}  Bg6 {[%clk 0:02:26]} 10. Bd2 {[%clk 0:02:34]}  e5 {[%clk 0:02:00]} 11. Qb3 {[%clk 0:02:19]}  Ne4 {[%clk 0:01:12]} 12. Nxg6 {[%clk 0:02:17]}  Nxd2 {[%clk 0:01:12]} 13. Kxd2 {[%clk 0:02:09]}  hxg6 {[%clk 0:01:12]} 14. Qxb7 {[%clk 0:02:06]}  Rb8 {[%clk 0:01:07]} 15. Qxc6 {[%clk 0:02:02]}  Rxb2+ {[%clk 0:00:36]} 16. Kc1 {[%clk 0:02:01]}  Rb8 {[%clk 0:00:36]} 17. Qxd5 {[%clk 0:01:36]}  Qa5 {[%clk 0:00:32]} 18. Kc2 {[%clk 0:01:31]}  Be7 {[%clk 0:00:20]} 19. Bc4 {[%clk 0:01:30]}  O-O {[%clk 0:00:13]} 20. Rhb1 {[%clk 0:01:25]}  exd4 {[%clk 0:00:12]} 21. exd4 {[%clk 0:01:24]}  Nf6 {[%clk 0:00:12]} 22. Qe5 {[%clk 0:01:17]}  Rxb1 {[%clk 0:00:11]} 23. Rxb1 {[%clk 0:01:17]}  Bd8 {[%clk 0:00:11]} 24. Rb7 {[%clk 0:01:11]}  Kh7 {[%clk 0:00:09]} 25. Bxf7 {[%clk 0:00:59]}  Qa3 {[%clk 0:00:03]} 26. Bxg6+ {[%clk 0:00:48]}  Kh8 {[%clk 0:00:02]} 27. Bd3 {[%clk 0:00:35]}  Ba5 {[%clk 0:00:01]} 28. Rb3 {[%clk 0:00:31]}  Nd7 {[%clk 0:00:01]} 29. Qe4 {[%clk 0:00:26]} 1-0


[Site "https://www.chess.com"]